fUST/lending_fUST_20250422
["ID","MTS","AMOUNT","RATE_DAILY","PERIOD"]
[358647321,1745334649291,-3365.52,0.00024109,2]
[358647322,1745334649301,-500.0,0.00024109,2]
[358647323,1745334649311,-184.21934752,0.00024109,2]
[358647324,1745334649321,-8479.44,0.00024109,2]
[358647325,1745334649331,-422.49625108,0.00024109,2]
[358647326,1745334649340,-506.86,0.00024109,2]
[358647327,1745334649351,-2355.44,0.00024109,2]
[358647328,1745334649361,-500.0,0.00024109,2]
[358647329,1745334649371,-500.0,0.00024109,2]
[358647330,1745334649381,-555.27642363,0.00024109,2]
[358647331,1745334649391,-540.25,0.00024109,2]
[358647332,1745334649402,-500.0,0.00024109,2]
[358647333,1745334649412,-534.5,0.00024109,2]
[358647334,1745334649421,-500.0,0.00024109,2]
[358647335,1745334649432,-500.0,0.00024109,2]
[358647336,1745334649442,-1304.33,0.00024109,2]
[358647337,1745334649452,-2433.23,0.00024109,2]
[358647338,1745334649462,-500.0,0.00024109,2]
[358647339,1745334649472,-500.0,0.00024109,2]
[358647340,1745334649482,-500.0,0.00024109,2]
[358647341,1745334649493,-500.0,0.00024109,2]
[358647342,1745334649506,-500.0,0.00024109,2]
[358647343,1745334649516,-1220.55,0.00024109,2]
[358647344,1745334649526,-500.0,0.00024109,2]
[358647345,1745334649535,-1579.47,0.00024109,2]
[358647346,1745334649545,-500.0,0.00024109,2]
[358647347,1745334649555,-554.32,0.00024109,2]
[358647348,1745334649565,-151.0,0.00024109,7]
[358647349,1745334649576,-4450.75,0.00024109,2]
[358647350,1745334649586,-516.69,0.00024109,2]
[358647351,1745334649596,-500.0,0.00024109,2]
[358647352,1745334649606,-888.81,0.00024109,2]
[358647353,1745334649615,-888.81,0.00024109,2]
[358647354,1745334649625,-888.81,0.00024109,2]
[358647355,1745334649635,-888.81,0.00024109,2]
[358647356,1745334649644,-888.81,0.00024109,2]
[358647357,1745334649657,-888.81,0.00024109,2]
[358647358,1745334649667,-888.81,0.00024109,2]
[358647359,1745334649677,-888.81,0.00024109,2]
[358647360,1745334649687,-888.81,0.00024109,2]
[358647361,1745334649696,-826.79,0.00024109,2]
[358647362,1745334649706,-500.0,0.00024109,2]
[358647363,1745334649716,-500.0,0.00024109,2]
[358647364,1745334649727,-208.83437802,0.0002411,2]
[358647365,1745334649736,-600.0,0.00024134,2]
[358647366,1745334649746,-864.530405,0.00024164,7]
[358647367,1745334649756,-864.530405,0.00024164,7]
[358647368,1745334649766,-600.0,0.00024382,2]
[358647369,1745334649776,-151.0,0.00024383,7]
[358647370,1745334649786,-158.55,0.00024383,7]
[358647371,1745334649798,-158.55,0.00024383,7]
[358647372,1745334649808,-151.0,0.00024383,7]
[358647373,1745334649821,-151.0,0.00024383,7]
[358647374,1745334649832,-151.0,0.00024383,7]
[358647375,1745334649842,-729.16666667,0.00024383,7]
[358647376,1745334649852,-334.787569,0.00024383,2]
[358647377,1745334649862,-334.787569,0.00024383,2]
[358647378,1745334649872,-151.0,0.00024383,7]
[358647379,1745334649882,-151.0,0.00024383,7]
[358647380,1745334649892,-151.0,0.00024383,7]
[358647381,1745334649902,-151.0,0.00024383,7]
[358647382,1745334649912,-151.0,0.00024383,7]
[358647383,1745334649923,-151.0,0.00024383,7]
[358647384,1745334649933,-500.0,0.00024383,2]
[358647385,1745334649943,-384.33103551,0.00024383,2]
[358647386,1745334649955,-500.0,0.00024383,2]
[358647387,1745334649970,-535.14,0.00024383,2]
[358647388,1745334649980,-151.0,0.00024383,7]
[358647389,1745334649990,-500.0,0.00024383,2]
[358647390,1745334650000,-151.0,0.00024383,7]
[358647391,1745334650010,-500.0,0.00024383,2]
[358647392,1745334650020,-584.44,0.00024383,2]
[358647393,1745334650030,-383.954216,0.00024383,7]
[358647394,1745334650040,-386.68793361,0.00024383,2]
[358647395,1745334650050,-383.954216,0.00024383,7]
[358647396,1745334650059,-764.77,0.00024383,2]
[358647397,1745334650069,-764.77,0.00024383,2]
[358647398,1745334650078,-764.77,0.00024383,2]
[358647399,1745334650088,-764.77,0.00024383,2]
[358647400,1745334650098,-764.77,0.00024383,2]
[358647401,1745334650108,-764.77,0.00024383,2]
[358647402,1745334650118,-764.77,0.00024383,2]
[358647403,1745334650127,-764.77,0.00024383,2]
[358647404,1745334650137,-764.77,0.00024383,2]
[358647405,1745334650146,-519.12,0.00024383,2]
[358647406,1745334650158,-764.77,0.00024383,2]
[358647407,1745334650167,-500.0,0.00024383,2]
[358647408,1745334650177,-151.0,0.00024383,7]
[358647409,1745334650187,-151.0,0.00024383,7]
[358647410,1745334650198,-151.0,0.00024383,7]
[358647411,1745334650208,-856.1,0.00024383,2]
[358647412,1745334650218,-535.06,0.00024383,2]
[358647413,1745334650228,-500.0,0.00024383,2]
[358647414,1745334650238,-151.0,0.00024383,7]
[358647415,1745334650248,-214.214128,0.00024383,7]
[358647416,1745334650258,-214.214128,0.00024383,7]
[358647417,1745334650268,-500.0,0.00024383,2]
[358647418,1745334650278,-500.0,0.00024383,2]
[358647419,1745334650288,-672.1,0.00024383,2]
[358647420,1745334650298,-500.0,0.00024383,2]
[358647421,1745334650308,-500.0,0.00024383,2]
[358647422,1745334650319,-3291.59,0.00024383,2]
[358647423,1745334650330,-1353.78,0.00024383,2]
[358647424,1745334650340,-1131.810825,0.00024383,7]
[358647425,1745334650350,-1131.810825,0.00024383,7]
[358647426,1745334650360,-151.0,0.00024383,7]
[358647427,1745334650370,-510.96,0.00024383,2]
[358647428,1745334650381,-500.0,0.00024383,2]
[358647429,1745334650391,-3365.52,0.00024383,2]
[358647430,1745334650401,-500.0,0.00024383,2]
[358647431,1745334650411,-8479.44,0.00024383,2]
[358647432,1745334650420,-506.86,0.00024383,2]
[358647433,1745334650430,-2355.44,0.00024383,2]
[358647434,1745334650440,-500.0,0.00024383,2]
[358647435,1745334650450,-500.0,0.00024383,2]
[358647436,1745334650461,-540.25,0.00024383,2]
[358647437,1745334650471,-200.68045778,0.00024383,2]
[358647438,1745334650481,-534.5,0.00024383,2]
[358647439,1745334650494,-605.86638227,0.00024383,2]
[358647440,1745334650504,-500.0,0.00024383,2]
[358647441,1745334650514,-1304.33,0.00024383,2]
[358647442,1745334650524,-2433.23,0.00024383,2]
[358647443,1745334650535,-500.0,0.00024383,2]
[358647444,1745334650545,-500.0,0.00024383,2]
[358647445,1745334650555,-500.0,0.00024383,2]
[358647446,1745334650565,-500.0,0.00024383,2]
[358647447,1745334650575,-500.0,0.00024383,2]
[358647448,1745334650585,-1220.55,0.00024383,2]
[358647449,1745334650596,-500.0,0.00024383,2]
[358647450,1745334650606,-1579.47,0.00024383,2]
[358647451,1745334650615,-500.0,0.00024383,2]
[358647452,1745334650625,-554.32,0.00024383,2]
[358647453,1745334650635,-4450.75,0.00024383,2]
[358647454,1745334650645,-516.69,0.00024383,2]
[358647455,1745334650656,-888.81,0.00024383,2]
[358647456,1745334650666,-826.79,0.00024383,2]
[358647457,1745334650676,-500.0,0.00024383,2]
[358647458,1745334650686,-500.0,0.00024383,2]
[358647459,1745334650696,-2200.0,0.00024451,2]
[358647460,1745334650706,-500.0,0.00024451,2]
[358647461,1745334650716,-151.0,0.00024486,7]
[358647462,1745334650726,-151.0,0.00024486,7]
[358647463,1745334650736,-360.39953,0.00024631,7]
[358647464,1745334650746,-360.39953,0.00024631,7]
[358647465,1745334650756,-207.788558,0.00024631,7]
[358647466,1745334650766,-207.788558,0.00024631,7]
[358647467,1745334650776,-600.0,0.00024631,2]
[358647468,1745334650786,-151.0,0.00024657,7]
[358647469,1745334650796,-151.0,0.00024657,7]
[358647470,1745334650806,-864.530405,0.00024657,7]
[358647471,1745334650815,-864.530405,0.00024657,7]
[358647472,1745334650825,-152.244384,0.00024657,7]
[358647473,1745334650835,-151.0,0.00024657,7]
[358647474,1745334650844,-1445.553093,0.00024657,2]
[358647475,1745334650854,-1445.553093,0.00024657,2]
[358647476,1745334650864,-151.0,0.00024657,7]
[358647477,1745334650873,-500.0,0.00024657,2]
[358647478,1745334650883,-500.0,0.00024657,2]
[358647479,1745334650894,-162.216206,0.00024657,7]
[358647480,1745334650906,-162.216206,0.00024657,7]
[358647481,1745334650916,-535.14,0.00024657,2]
[358647482,1745334650926,-500.0,0.00024657,2]
[358647483,1745334650937,-500.0,0.00024657,2]
[358647484,1745334650947,-584.44,0.00024657,2]
[358647485,1745334650958,-519.12,0.00024657,2]
[358647486,1745334650970,-764.77,0.00024657,2]
[358647487,1745334650985,-500.0,0.00024657,2]
[358647488,1745334650996,-856.1,0.00024657,2]
[358647489,1745334651006,-535.06,0.00024657,2]
[358647490,1745334651015,-326.1196972,0.00024657,2]
[358647491,1745334651024,-500.0,0.00024657,2]
[358647492,1745334651034,-500.0,0.00024657,2]
[358647493,1745334651043,-672.1,0.00024657,2]
[358647494,1745334651053,-500.0,0.00024657,2]
[358647495,1745334651062,-500.0,0.00024657,2]
[358647496,1745334651071,-3291.59,0.00024657,2]
[358647497,1745334651081,-1353.78,0.00024657,2]
[358647498,1745334651091,-510.96,0.00024657,2]
[358647499,1745334651100,-500.0,0.00024657,2]
[358647500,1745334651110,-3365.52,0.00024657,2]
[358647501,1745334651120,-315.37134475,0.00024657,2]
[358647502,1745334651130,-8479.44,0.00024657,2]
[358647503,1745334651139,-506.86,0.00024657,2]
[358647504,1745334651149,-2355.44,0.00024657,2]
[358647505,1745334651161,-500.0,0.00024657,2]
[358647506,1745334651170,-500.0,0.00024657,2]
[358647507,1745334651180,-540.25,0.00024657,2]
[358647508,1745334651190,-534.5,0.00024657,2]
[358647509,1745334651200,-500.0,0.00024657,2]
[358647510,1745334651209,-1304.33,0.00024657,2]
[358647511,1745334651219,-2433.23,0.00024657,2]
[358647512,1745334651228,-500.0,0.00024657,2]
[358647513,1745334651238,-500.0,0.00024657,2]
[358647514,1745334651247,-500.0,0.00024657,2]
[358647515,1745334651257,-500.0,0.00024657,2]
[358647516,1745334651266,-500.0,0.00024657,2]
[358647517,1745334651276,-1220.55,0.00024657,2]
[358647518,1745334651286,-500.0,0.00024657,2]
[358647519,1745334651296,-1579.47,0.00024657,2]
[358647520,1745334651305,-500.0,0.00024657,2]
[358647521,1745334651315,-554.32,0.00024657,2]
[358647522,1745334651326,-4450.75,0.00024657,2]
[358647523,1745334651342,-516.69,0.00024657,2]
[358647524,1745334651362,-888.81,0.00024657,2]
[358647525,1745334651539,-826.79,0.00024657,2]
[358647526,1745334651551,-500.0,0.00024657,2]
[358647527,1745334651562,-500.0,0.00024657,2]
[358647528,1745334651575,-977.9923352,0.00024658,4]
[358647529,1745334651587,-151.0,0.00024658,7]
[358647530,1745334651598,-151.0,0.00024658,7]
[358647531,1745334651608,-200.0,0.00024658,15]
[358647532,1745334651619,-380.0,0.00024658,2]
[358647533,1745334651629,-151.0,0.00024658,7]
[358647534,1745334651640,-151.0,0.00024658,7]
[358647535,1745334651652,-151.0,0.00024658,7]
[358647536,1745334651666,-334.787569,0.00024658,2]
[358647537,1745334651676,-334.787569,0.00024658,2]
[358647538,1745334651687,-152.611639,0.00024658,7]
[358647539,1745334651698,-193.34725938,0.00024658,2]
[358647540,1745334651708,-500.0,0.00024658,2]
[358647541,1745334651719,-500.0,0.00024658,2]
[358647542,1745334651730,-500.0,0.00024658,2]
[358647543,1745334651740,-500.0,0.00024658,2]
[358647544,1745334651750,-500.0,0.00024658,2]
[358647545,1745334651762,-500.0,0.00024658,2]
[358647546,1745334651772,-500.0,0.00024658,2]
[358647547,1745334651782,-500.0,0.00024658,2]
[358647548,1745334651792,-500.0,0.00024658,2]
[358647549,1745334651803,-500.0,0.00024658,2]
[358647550,1745334651813,-349.77154281,0.00024658,2]
[358647551,1745334651824,-500.0,0.00024658,2]
[358647552,1745334651834,-500.0,0.00024658,2]
[358647553,1745334651844,-500.0,0.00024658,2]
[358647554,1745334651854,-500.0,0.00024658,2]
[358647555,1745334651864,-500.0,0.00024658,2]
[358647556,1745334651875,-500.0,0.00024658,2]
[358647557,1745334651885,-500.0,0.00024658,2]
[358647558,1745334651896,-500.0,0.00024658,2]
[358647559,1745334651913,-500.0,0.00024658,2]
[358647560,1745334651923,-500.0,0.00024658,2]
[358647561,1745334651934,-500.0,0.00024658,2]
[358647562,1745334651944,-500.0,0.00024658,2]
[358647563,1745334651955,-500.0,0.00024658,2]
[358647564,1745334651965,-500.0,0.00024658,2]
[358647565,1745334651975,-500.0,0.00024658,2]
[358647566,1745334651986,-500.0,0.00024658,2]
[358647567,1745334651995,-500.0,0.00024658,2]
[358647568,1745334652005,-587.0,0.00024731,2]
[358647569,1745334652015,-500.0,0.00024773,2]
[358647570,1745334652025,-500.0,0.00024773,2]
[358647571,1745334652034,-500.0,0.00024773,2]
[358647572,1745334652044,-500.0,0.00024773,2]
[358647573,1745334652053,-500.0,0.00024773,2]
[358647574,1745334652063,-505.15048638,0.00024773,2]
[358647575,1745334652073,-500.0,0.00024773,2]
[358647576,1745334652082,-548.70368773,0.00024773,2]
[358647577,1745334652092,-1163.99,0.0002479,3]
[358647578,1745334652101,-163.84704066,0.00024799,2]
[358647579,1745334652111,-123903.14032636,0.000248,2]
[358647580,1745334652121,-151.0,0.000248,7]
[358647581,1745334652130,-350336.56670551,0.000248,6]
[358647582,1745334652140,-158.55,0.000248,7]
[358647583,1745334652150,-158.55,0.000248,7]
[358647584,1745334652163,-158.55,0.000248,7]
[358647585,1745334652172,-158.55,0.000248,7]
[358647586,1745334652183,-158.55,0.000248,7]
[358647587,1745334652193,-158.55,0.000248,7]
[358647588,1745334652202,-151.0,0.000248,7]
[358647589,1745334652212,-213.145252,0.000248,7]
[358647590,1745334652222,-165.814805,0.000248,7]
[358647591,1745334652232,-3000.0,0.000248,2]
[358647592,1745334652241,-151.244324,0.000248,7]
[358647593,1745334652251,-151.0,0.000248,7]
[358647594,1745334652261,-151.0,0.000248,7]
[358647595,1745334652270,-151.0,0.000248,7]
[358647596,1745334652281,-1445.553093,0.000248,2]
[358647597,1745334652291,-1445.553093,0.000248,2]
[358647598,1745334652301,-1445.553093,0.000248,2]
[358647599,1745334652311,-1445.553093,0.000248,2]
[358647600,1745334652320,-151.0,0.000248,7]
[358647601,1745334652330,-201.134941,0.000248,7]
[358647602,1745334652340,-151.0,0.000248,7]
[358647603,1745334652350,-151.0,0.000248,7]
[358647604,1745334652360,-360.39953,0.000248,7]
[358647605,1745334652370,-360.39953,0.000248,7]
[358647606,1745334652379,-360.39953,0.000248,7]
[358647607,1745334652389,-360.39953,0.000248,7]
[358647608,1745334652399,-207.788558,0.000248,7]
[358647609,1745334652413,-207.788558,0.000248,7]
[358647610,1745334652422,-162.216206,0.000248,7]
[358647611,1745334652432,-162.216206,0.000248,7]
[358647612,1745334652442,-207.788558,0.000248,7]
[358647613,1745334652452,-207.788558,0.000248,7]
[358647614,1745334652462,-162.216206,0.000248,7]
[358647615,1745334652472,-162.216206,0.000248,7]
[358647616,1745334652483,-170.637688,0.000248,7]
[358647617,1745334652493,-151.0,0.000248,7]
[358647618,1745334652507,-383.954216,0.000248,7]
[358647619,1745334652517,-383.954216,0.000248,7]
[358647620,1745334652527,-151.0,0.000248,7]
[358647621,1745334652537,-151.0,0.000248,7]
[358647622,1745334652547,-151.0,0.000248,7]
[358647623,1745334652556,-151.0,0.000248,7]
[358647624,1745334652566,-186.583032,0.000248,7]
[358647625,1745334652576,-214.214128,0.000248,7]
[358647626,1745334652586,-214.214128,0.000248,7]
[358647627,1745334652596,-1131.810825,0.000248,7]
[358647628,1745334652606,-1131.810825,0.000248,7]
[358647629,1745334652616,-151.0,0.000248,7]
[358647630,1745334652626,-10358.309337,0.000248,2]
[358647631,1745334652636,-151.0,0.000248,7]
[358647632,1745334652646,-151.0,0.000248,7]
[358647633,1745334652659,-151.0,0.000248,7]
[358647634,1745334652670,-151.0,0.0002481,7]
[358647635,1745334652680,-3000.0,0.0002481,2]
[358647636,1745334652690,-3000.0,0.0002482,2]
[358647637,1745334652701,-3000.0,0.0002483,2]
[358647638,1745334652711,-1485.7497107,0.00024832,2]
[358647639,1745334652721,-3000.0,0.0002484,2]
[358647640,1745334652731,-3000.0,0.0002485,2]
[358647641,1745334652742,-3000.0,0.0002486,2]
[358647642,1745334652753,-3735.977032,0.0002487,2]
[358647643,1745334652763,-500.0,0.00024873,2]
[358647644,1745334652773,-500.0,0.00024873,2]
[358647645,1745334652783,-500.0,0.00024873,2]
[358647646,1745334652794,-662340.54517364,0.0002488,2]
[358647647,1745334652912,-9975.3030393,0.0002488,2]
[358647648,1745334653023,-844.28047565,0.00020904,2]
[358647649,1745334653034,-844.28047565,0.00020904,2]
[358647650,1745334653044,-500.0,0.00021917,2]
[358647651,1745334653054,-12777.74764224,0.0002488,2]
[358647652,1745334653144,-160.0,0.00022956,2]
[358647653,1745334653156,-1661.44358879,0.0002488,3]
[358647654,1745334667749,-203.14244207,0.00021917,2]
[358647655,1745334667759,-500.0,0.00021917,2]
[358647656,1745334667768,-500.0,0.00021917,2]
[358647657,1745334667778,-151.0,0.00022465,7]
[358647658,1745334667788,-151.0,0.00023287,7]
[358647659,1745334667798,-151.0,0.00024109,7]
[358647660,1745334667808,-153.151774,0.00024658,7]
[358647661,1745334667818,-3997.22339867,0.0002488,3]
[358647662,1745334667830,-20917.27745456,0.0002488,3]
[358647663,1745334667839,-985.65702066,0.0002488,2]
[358647664,1745334667851,-3253.60158993,0.0002488,2]
[358647665,1745334667864,-821.79689604,0.0002488,2]
[358647676,1745335221205,1157.6120672,0.00019784,2]
[358647679,1745335291035,406.354799,0.00019795,2]
[358647681,1745335326187,250.0,0.00019794,2]
[358647694,1745335621241,1000.0,0.00023,30]
[358647701,1745335663351,175.42756,0.00019776,2]
[358647703,1745335691628,479.1214827,0.00019776,2]
[358647708,1745335732902,803.72028725,0.00014,30]
[358647716,1745335815389,4448.0630974,0.00019776,2]
[358647738,1745335832358,-160.0,0.00020682,2]
[358647739,1745335832368,-224.35416779,0.00020698,2]
[358647740,1745335832378,-359.3838135,0.00020705,2]
[358647741,1745335832387,-181.82450005,0.00020708,2]
[358647742,1745335832396,-7602.39,0.00020786,3]
[358647743,1745335832406,-3801.19,0.00020786,3]
[358647744,1745335832421,-300.0,0.00020791,2]
[358647745,1745335832431,-300.0,0.00020791,2]
[358647746,1745335832441,-5000.0,0.00020792,2]
[358647747,1745335832454,-300.0,0.00020792,2]
[358647748,1745335832464,-160.0,0.00020793,3]
[358647749,1745335832473,-12570.97479393,0.00020793,3]
[358647750,1745335832483,-729.16666667,0.00020793,3]
[358647751,1745335832493,-156.0390746,0.00020796,2]
[358647752,1745335832503,-500.0,0.00020796,2]
[358647753,1745335832513,-291.94814995,0.00020796,2]
[358647754,1745335832523,-218.99973975,0.00020796,2]
[358647755,1745335832533,-242.91864506,0.00020796,2]
[358647756,1745335832542,-3217.60928394,0.00020796,2]
[358647757,1745335832552,-3217.60928394,0.00020796,2]
[358647758,1745335832562,-3217.60928394,0.00020796,2]
[358647759,1745335832572,-3217.60928394,0.00020796,2]
[358647760,1745335832582,-3217.60928394,0.00020796,2]
[358647761,1745335832592,-3217.60928394,0.00020796,2]
[358647762,1745335832602,-3217.60928394,0.00020796,2]
[358647763,1745335832612,-3217.60928394,0.00020796,2]
[358647764,1745335832622,-3217.60928394,0.00020796,2]
[358647765,1745335832632,-3217.60928394,0.00020796,2]
[358647766,1745335832642,-3217.60928394,0.00020796,2]
[358647767,1745335832651,-3217.60928394,0.00020796,2]
[358647768,1745335832661,-3217.60928394,0.00020796,2]
[358647769,1745335832671,-3217.60928394,0.00020796,2]
[358647770,1745335832681,-3217.60928394,0.00020796,2]
[358647771,1745335832691,-3217.60928394,0.00020796,2]
[358647772,1745335832702,-3217.60928394,0.00020796,2]
[358647773,1745335832712,-3217.60928394,0.00020796,2]
[358647774,1745335832722,-3217.60928394,0.00020796,2]
[358647775,1745335832732,-3217.60928394,0.00020796,2]
[358647776,1745335832742,-3217.60928394,0.00020796,2]
[358647777,1745335832752,-3217.60928394,0.00020796,2]
[358647778,1745335832762,-3217.60928394,0.00020796,2]
[358647779,1745335832772,-3217.60928394,0.00020796,2]
[358647780,1745335832782,-3217.60928394,0.00020796,2]
[358647781,1745335832791,-3217.60928394,0.00020796,2]
[358647782,1745335832801,-3217.60928394,0.00020796,2]
[358647783,1745335832811,-764.33532935,0.00020796,2]
[358647784,1745335832824,-2453.27395459,0.00020796,2]
[358647785,1745335832834,-3217.60928394,0.00020796,2]
[358647786,1745335832844,-3217.60928394,0.00020796,2]
[358647787,1745335832854,-3217.60928394,0.00020796,2]
[358647788,1745335832864,-3217.60928394,0.00020796,2]
[358647789,1745335832874,-3217.60928394,0.00020796,2]
[358647790,1745335832884,-3217.60928394,0.00020796,2]
[358647791,1745335832894,-3217.60928394,0.00020796,2]
[358647792,1745335832904,-3217.60928394,0.00020796,2]
[358647793,1745335832915,-3217.60928394,0.00020796,2]
[358647794,1745335832926,-3217.60928394,0.00020796,2]
[358647795,1745335832936,-3217.60928394,0.00020796,2]
[358647796,1745335832946,-3203.91732955,0.00020796,2]
[358647797,1745335832959,-3203.91732955,0.00020796,2]
[358647798,1745335832969,-3203.91732955,0.00020796,2]
[358647799,1745335833166,-3203.91732955,0.00020796,2]
[358647800,1745335833177,-3203.91732955,0.00020796,2]
[358647801,1745335833186,-3203.91732955,0.00020796,2]
[358647802,1745335833196,-3203.91732955,0.00020796,2]
[358647803,1745335833210,-3203.91732955,0.00020796,2]
[358647804,1745335833219,-3203.91732955,0.00020796,2]
[358647805,1745335833229,-3203.91732955,0.00020796,2]
[358647806,1745335833239,-3203.91732955,0.00020796,2]
[358647807,1745335833248,-3203.91732955,0.00020796,2]
[358647808,1745335833258,-3203.91732955,0.00020796,2]
[358647809,1745335833268,-3203.91732955,0.00020796,2]
[358647810,1745335833278,-3203.91732955,0.00020796,2]
[358647811,1745335833288,-1350.89555939,0.00020796,2]
[358647812,1745335833301,-1853.02177016,0.00020796,2]
[358647813,1745335833311,-3203.91732955,0.00020796,2]
[358647814,1745335833320,-3203.91732955,0.00020796,2]
[358647815,1745335833330,-3203.91732955,0.00020796,2]
[358647816,1745335833340,-1284.40928584,0.00020796,2]
[358647817,1745335833352,-653.40133027,0.00020796,2]
[358647818,1745335833368,-1266.10671344,0.00020796,2]
[358647819,1745335833378,-3203.91732955,0.00020796,2]
[358647820,1745335833388,-3203.91732955,0.00020796,2]
[358647821,1745335833398,-3203.91732955,0.00020796,2]
[358647822,1745335833407,-3203.91732955,0.00020796,2]
[358647823,1745335833417,-3203.91732955,0.00020796,2]
[358647824,1745335833426,-3203.91732955,0.00020796,2]
[358647825,1745335833436,-3163.14019989,0.00020796,2]
[358647826,1745335833445,-3163.14019989,0.00020796,2]
[358647827,1745335833457,-3163.14019989,0.00020796,2]
[358647828,1745335833466,-3163.14019989,0.00020796,2]
[358647829,1745335833476,-3163.14019989,0.00020796,2]
[358647830,1745335833486,-3163.14019989,0.00020796,2]
[358647831,1745335833495,-3163.14019989,0.00020796,2]
[358647832,1745335833505,-3163.14019989,0.00020796,2]
[358647833,1745335833516,-3163.14019989,0.00020796,2]
[358647834,1745335833526,-2883.86525645,0.00020796,2]
[358647835,1745335838552,-279.27494344,0.00020796,2]
[358647836,1745335838563,-3163.14019989,0.00020796,2]
[358647837,1745335838572,-3163.14019989,0.00020796,2]
[358647838,1745335838582,-3163.14019989,0.00020796,2]
[358647839,1745335838592,-3163.14019989,0.00020796,2]
[358647840,1745335838601,-3163.14019989,0.00020796,2]
[358647841,1745335838611,-3163.14019989,0.00020796,2]
[358647842,1745335838621,-3163.14019989,0.00020796,2]
[358647843,1745335838630,-3163.1401999,0.00020796,2]
[358647844,1745335838640,-3163.1401999,0.00020796,2]
[358647845,1745335838650,-3163.1401999,0.00020796,2]
[358647847,1745335838659,-3163.1401999,0.00020796,2]
[358647849,1745335838669,-3163.1401999,0.00020796,2]
[358647851,1745335838679,-500.0,0.000208,2]
[358647853,1745335838689,-500.0,0.00020802,3]
[358647855,1745335838698,-24556.853404,0.00020802,3]
[358647857,1745335838710,-370000.0,0.00020805,2]
[358647859,1745335838720,-500.0,0.000213,2]
[358647861,1745335838729,-151.0,0.00021622,2]
[358647863,1745335838739,-267.79664922,0.00021622,2]
[358647865,1745335838749,-500.0,0.00021917,2]
[358647867,1745335838759,-511.76396241,0.00021917,2]
[358647869,1745335838768,-500.0,0.00021917,2]
[358647871,1745335838778,-500.0,0.00021917,2]
[358647873,1745335838787,-504.3851446,0.00021917,2]
[358647875,1745335838797,-500.0,0.00021917,2]
[358647877,1745335838807,-160.0,0.00021917,2]
[358647879,1745335838817,-500.0,0.00021917,2]
[358647881,1745335838826,-500.0,0.00021917,2]
[358647884,1745335838836,-500.0,0.00021917,2]
[358647886,1745335838845,-500.0,0.00021917,2]
[358647888,1745335838856,-500.0,0.00021917,2]
[358647890,1745335838866,-502.75279379,0.00021917,2]
[358647892,1745335838876,-500.0,0.00021917,2]
[358647894,1745335838886,-500.0,0.00021917,2]
[358647895,1745335838896,-500.0,0.00021917,2]
[358647897,1745335838908,-500.0,0.00021917,2]
[358647899,1745335838917,-500.0,0.00021917,2]
[358647901,1745335838928,-500.0,0.00021917,2]
[358647903,1745335838937,-511.80561492,0.00021917,2]
[358647904,1745335838947,-500.0,0.00021917,2]
[358647907,1745335838958,-502.09964319,0.00021917,2]
[358647908,1745335838968,-500.0,0.00021917,2]
[358647910,1745335838977,-513.11844049,0.00021917,2]
[358647912,1745335838989,-500.0,0.00021917,2]
[358647914,1745335839000,-500.0,0.00021917,2]
[358647916,1745335839010,-500.0,0.00021917,2]
[358647918,1745335839019,-500.0,0.00021917,2]
[358647920,1745335839029,-500.0,0.00021917,2]
[358647922,1745335839039,-500.0,0.00021917,2]